bitfinex/quotes_SOLUSD_20240827
["timestamp","ask_amount","ask_price","bid_price","bid_amount"]
[1724738593805,11.22674015,159.35,159.3,16.5094822]
[1724738594012,15.4141,159.34,159.3,16.5094822]
[1724738594207,46.56938113,159.33,159.3,16.5094822]
[1724738594425,1.56938116,159.32,159.3,16.5094822]
[1724738594729,45.0,159.33,159.3,16.5094822]
[1724738595036,46.56937968,159.33,159.3,16.5094822]
[1724738595206,21.69,159.34,159.3,22.7868822]
[1724738595207,15.4141,159.34,159.3,22.7868822]
[1724738596730,15.4141,159.34,159.31,6.2768]
[1724738598648,7.84431063,159.36,159.31,6.2768]
[1724738600546,16.5688,159.38,159.33,9.65760457]
[1724738600736,6.6573,159.41,159.35,9.65760457]
[1724738600912,16.5688,159.42,159.37,6.2743]
[1724738601114,16.5688,159.42,159.38,6.2741]
[1724738601827,18.13727872,159.42,159.38,6.2741]
[1724738602719,24.40997872,159.42,159.37,15.6866]
[1724738602905,6.2734,159.41,159.35,6.2754]
[1724738603109,56.22635368,159.4,159.33,21.9656]
[1724738603337,7.84280475,159.39,159.33,21.9656]
[1724738603641,45.0,159.38,159.34,6.2758]
[1724738603815,7.84280475,159.39,159.34,6.2758]
[1724738604165,51.2735,159.4,159.35,6.2754]
[1724738605135,1.56874203,159.39,159.35,6.2754]
[1724738605339,51.2735,159.4,159.35,6.2754]
[1724738606250,1.56875852,159.39,159.35,6.2754]
[1724738607043,1.56875852,159.39,159.34,6.2758]
[1724738607706,7.84285852,159.39,159.34,6.2758]
[1724738607919,45.0,159.38,159.34,6.2758]
[1724738608130,1.56890259,159.37,159.34,6.2758]
[1724738609565,6.2741,159.39,159.3,10.47368677]
[1724738609566,16.5688,159.42,159.35,1.25512206]
[1724738609852,16.5688,159.42,159.36,15.6874]
[1724738610033,34.06788143,159.42,159.36,15.6874]
[1724738610350,34.06788143,159.42,159.37,6.2746]
[1724738611145,9.65760457,159.4,159.36,21.9624]
[1724738611446,1.56870185,159.39,159.36,21.9624]
[1724738612259,1.56868616,159.4,159.36,21.9624]
[1724738613126,1.56864456,159.41,159.37,6.2746]
[1724738613330,46.56864456,159.41,159.37,6.2746]
[1724738616647,52.84174456,159.41,159.37,6.2746]
[1724738616853,52.84174456,159.41,159.36,21.9624]
[1724738617153,9.65760457,159.4,159.36,21.9624]
[1724738617336,1.5687246,159.39,159.36,21.9624]
[1724738620744,11.22633071,159.4,159.36,21.9624]
[1724738621936,1.56872325,159.39,159.36,21.9624]
[1724738622568,45.0,159.41,159.37,6.2745]
[1724738623827,22.8416,159.42,159.38,6.2742]
[1724738623828,16.5688,159.42,159.38,6.2742]
[1724738628163,22.8415,159.42,159.38,6.2742]
[1724738632350,22.95803572,159.46,159.39,1.25478403]
[1724738632550,6.54443572,159.46,159.4,9.65760457]
[1724738632780,6.2707,159.47,159.43,6.2723]
[1724738641150,6.2707,159.47,159.4,25.34070457]
[1724738641151,1.56804476,159.46,159.4,15.6831]
[1724738641355,46.56804476,159.46,159.4,15.6831]
[1724738641556,1.56812804,159.45,159.4,15.6831]
[1724738642653,1.56812804,159.45,159.42,6.2726]
[1724738651491,1.56812804,159.45,159.41,6.273]
[1724738652286,46.56812499,159.46,159.42,6.2727]
[1724738653785,1.56812051,159.45,159.42,6.2727]
[1724738653991,1.56812104,159.45,159.42,6.2727]
[1724738654569,1.56812104,159.45,159.41,6.2731]
[1724738654769,7.83962104,159.45,159.41,6.2731]
[1724738654979,45.0,159.44,159.41,6.2731]
[1724738655178,1.56830451,159.43,159.4,15.6831]
[1724738655385,1.56830451,159.43,159.39,6.2735]
[1724738655897,1.56840634,159.42,159.38,6.2742]
[1724738656578,7.84120634,159.42,159.37,21.9611]
[1724738656887,45.0,159.41,159.37,21.9611]
[1724738657184,1.56862587,159.4,159.37,21.9611]
[1724738659396,1.56862587,159.4,159.37,15.6864]
[1724738659891,11.22628788,159.39,159.34,15.6896]
[1724738660088,45.0,159.38,159.34,15.6896]
[1724738660277,1.5688868,159.37,159.34,15.6896]
[1724738660670,1.5688868,159.37,159.34,21.9654]
[1724738665802,1.5688868,159.37,159.32,6.2763]
[1724738666487,51.2743,159.38,159.33,6.2762]
[1724738667270,52.84327204,159.38,159.33,6.2762]
[1724738667500,51.2743,159.38,159.33,6.2762]
[1724738667886,45.0,159.38,159.34,6.2758]
[1724738669678,1.56882356,159.37,159.34,6.2758]
[1724738670507,1.56882356,159.37,159.31,15.6925]
[1724738671703,1.56882356,159.37,159.33,6.2761]
[1724738674214,1.56882356,159.37,159.31,15.6925]
[1724738674215,7.84372356,159.37,159.31,21.9692]
[1724738675306,7.84372356,159.37,159.32,6.2764]
[1724738675503,6.2749,159.37,159.32,6.2764]
[1724738677401,7.84397613,159.37,159.32,6.2764]
[1724738681410,6.2749,159.37,159.32,6.2764]
[1724738684918,7.84397112,159.37,159.32,6.2764]
[1724738690418,16.1484,159.4,159.37,6.2746]
[1724738690714,397.4132,159.44,159.4,6.2734]
[1724738690900,16.1132,159.44,159.41,6.273]
[1724738691098,6.319,159.47,159.41,6.273]
[1724738691498,6.319,159.47,159.43,6.2723]
[1724738691697,17.68111063,159.48,159.43,6.2723]
[1724738693091,20.0,159.47,159.43,6.2723]
[1724738697641,1.56792255,159.46,159.42,6.2726]
[1724738698221,1.56813857,159.45,159.41,15.6827]
[1724738699339,1.56813857,159.45,159.41,21.9557]
[1724738703443,7.83973857,159.45,159.4,6.2735]
[1724738703643,6.2716,159.45,159.4,6.2735]
[1724738704633,1.56832122,159.44,159.4,6.2735]
[1724738705666,6.3225,159.45,159.41,6.2731]
[1724738705952,6.2712,159.46,159.41,6.2731]
[1724738706846,1.56813355,159.45,159.41,6.2731]
[1724738710141,1.56813355,159.45,159.4,6.2734]
[1724738710324,17.49723812,159.45,159.38,15.6857]
[1724738710523,17.49723812,159.45,159.39,6.2735]
[1724738710959,17.49723812,159.45,159.4,6.2732]
[1724738711251,6.2715,159.45,159.4,6.2732]
[1724738711551,7.83971945,159.45,159.4,6.2732]
[1724738711772,6.2712,159.46,159.4,6.2732]
[1724738711951,6.2712,159.46,159.41,6.273]
[1724738712154,20.0,159.47,159.4,25.34060457]
[1724738712364,20.0,159.47,159.41,1.25436136]
[1724738712521,20.0,159.47,159.42,6.2724]
[1724738713355,26.2708,159.47,159.42,6.2724]
[1724738713537,20.0,159.47,159.43,6.2722]
[1724738714274,21.56785639,159.47,159.43,6.2722]
[1724738715571,20.0,159.47,159.43,6.2722]
[1724738716067,20.0,159.47,159.44,1.25428498]
[1724738716361,21.56780087,159.47,159.43,6.2721]
[1724738717146,27.83860087,159.47,159.42,6.2726]
[1724738719459,26.2708,159.47,159.42,6.2726]
[1724738722667,1.56800652,159.46,159.42,6.2726]
[1724738723580,7.83910652,159.46,159.4,21.9561]
[1724738723785,1.56811513,159.45,159.4,21.9561]
[1724738725350,1.56811513,159.45,159.41,6.273]
[1724738726685,32.49900457,159.44,159.4,15.683]
[1724738726871,1.56834749,159.43,159.4,15.683]
[1724738727875,1.56834749,159.43,159.37,21.9608]
[1724738728057,1.56851035,159.42,159.37,21.9608]
[1724738728551,1.56851035,159.42,159.38,6.2743]
[1724738728985,1.56844828,159.43,159.38,6.2743]
[1724738729389,7.84115058,159.42,159.37,21.9611]
[1724738729601,16.17213023,159.42,159.37,21.9611]
[1724738731388,6.2731,159.41,159.37,15.6865]
[1724738731586,1.56851853,159.4,159.37,15.6865]
[1724738732272,7.84201853,159.4,159.35,6.2754]
[1724738732463,25.44300457,159.38,159.29,15.6737]
[1724738732663,1.56902768,159.37,159.27,41.04970457]
[1724738732862,1.56902768,159.37,159.28,3.32928259]
[1724738733677,7.84402768,159.37,159.32,6.2762]
[1724738734887,1.56902768,159.37,159.32,6.2762]
[1724738735088,22.0597,159.38,159.33,6.2761]
[1724738735295,15.7854,159.38,159.34,6.2757]
[1724738735453,15.7854,159.38,159.35,6.2754]
[1724738736492,17.35417958,159.38,159.34,6.2758]
[1724738739661,6.2747,159.37,159.32,21.9672]
[1724738739863,1.56897677,159.36,159.32,21.9672]
[1724738740188,6.2747,159.37,159.32,21.9672]
[1724738740369,1.56894698,159.36,159.32,21.9672]
[1724738742301,7.84455812,159.35,159.3,7.0934822]
[1724738743199,1.5691363,159.34,159.3,7.0934822]
[1724738744807,7.8451363,159.34,159.3,0.8160822]
[1724738750801,25.44300457,159.33,159.3,0.8160822]
[1724738751012,1.56940682,159.32,159.3,0.8160822]
[1724738753122,27.01241105,159.33,159.3,0.8160822]
[1724738753814,17.35480648,159.33,159.3,0.8160822]
[1724738755920,15.7854,159.33,159.3,0.8160822]
[1724738756417,15.7854,159.33,159.3,8.34899146]
[1724738756591,15.7854,159.33,159.3,7.0934822]
[1724738757221,25.44300457,159.37,159.3,0.8160822]
[1724738757398,20.0,159.36,159.3,0.8160822]
[1724738757799,21.56907127,159.36,159.32,6.2766]
[1724738758223,26.2751,159.36,159.31,6.2769]
[1724738759527,27.84420038,159.36,159.31,6.2769]
[1724738760401,1.56910271,159.35,159.31,6.2769]
[1724738762034,11.22670728,159.35,159.31,6.2769]
[1724738762201,9.65760457,159.33,159.3,0.8160822]
[1724738762509,11.2269832,159.33,159.3,0.8160822]
[1724738762709,6.2759,159.34,159.3,0.8160822]
[1724738762710,7.8452363,159.34,159.3,0.8160822]
[1724738762905,6.2755,159.35,159.3,7.0933822]
[1724738763424,7.84472801,159.35,159.3,7.0933822]
[1724738764736,7.84471101,159.35,159.3,7.0933822]
[1724738765536,26.2751,159.36,159.31,7.53235674]
[1724738765708,26.2751,159.36,159.31,6.277]
[1724738766930,26.2751,159.36,159.32,6.2764]
[1724738766931,20.0,159.36,159.32,6.2764]
[1724738767321,20.0,159.36,159.31,6.277]
[1724738767521,1.56911552,159.35,159.31,6.277]
[1724738767826,9.65760457,159.34,159.3,7.0934822]
[1724738768028,1.56926898,159.33,159.3,7.0934822]
[1724738769231,6.2754,159.35,159.3,8.34885724]
[1724738769414,6.2754,159.35,159.3,7.0934822]
[1724738769618,7.84452968,159.35,159.3,7.0934822]
[1724738770617,1.56912968,159.35,159.3,7.0934822]
[1724738771209,35.93270457,159.36,159.3,7.0934822]
[1724738771502,1.56912929,159.35,159.3,7.0934822]
[1724738774024,37.50183297,159.36,159.31,6.2768]
[1724738774413,1.56905021,159.35,159.31,6.2768]
[1724738778950,6.2751,159.36,159.31,6.2768]
[1724738779160,16.0641,159.41,159.34,6.2758]
[1724738779345,16.0641,159.41,159.35,1.25492462]
[1724738780346,6.2738,159.4,159.35,6.2754]
[1724738780554,6.2738,159.4,159.36,1.25492612]
[1724738780727,6.2738,159.4,159.35,7.53029045]
[1724738780929,6.2738,159.4,159.35,6.2754]
[1724738781742,6.2738,159.4,159.36,1.25489047]
[1724738782345,6.2738,159.4,159.35,6.2754]
[1724738782560,6.2738,159.4,159.33,25.34750457]
[1724738782561,7.84251423,159.39,159.34,6.2758]
[1724738782740,17.5001188,159.39,159.34,6.2758]
[1724738782929,6.2743,159.38,159.34,6.2758]
[1724738783132,1.56885511,159.37,159.33,21.966]
[1724738787057,7.84311185,159.38,159.33,21.966]
[1724738788565,6.2748,159.37,159.33,15.6899]
[1724738789054,1.56895071,159.36,159.33,15.6899]
[1724738789558,7.84371417,159.37,159.33,15.6899]
[1724738790249,9.65760457,159.35,159.3,16.5096822]
[1724738790559,1.56917025,159.34,159.3,22.7867822]
[1724738790736,9.65760457,159.37,159.3,16.5096822]
[1724738790934,1.5690767,159.36,159.3,16.5096822]
[1724738791765,7.8441767,159.36,159.31,6.277]
[1724738791947,1.56907622,159.35,159.31,6.277]
[1724738794559,7.84457622,159.35,159.3,22.7869822]
[1724738794762,1.56913025,159.34,159.3,22.7869822]
[1724738796946,15.93310457,159.35,159.3,22.7869822]
[1724738798839,1.56912495,159.34,159.3,22.7869822]
[1724738800366,17.50229648,159.35,159.3,22.7869822]
[1724738800964,11.22679648,159.35,159.3,0.8160822]
[1724738801169,6.2762,159.33,159.3,0.8160822]
[1724738801371,1.56936117,159.32,159.3,0.8160822]
[1724738804441,20.0,159.35,159.3,0.8160822]
[1724738805775,26.2755,159.35,159.3,7.0933822]
[1724738806157,27.84469205,159.35,159.3,7.0933822]
[1724738806956,6.2759,159.34,159.3,0.8160822]
[1724738807145,1.56931066,159.33,159.3,0.8160822]
[1724738808037,6.2759,159.34,159.3,0.8160822]
[1724738810171,26.2755,159.35,159.3,8.34888112]
[1724738810548,27.84468945,159.35,159.3,7.0934822]
[1724738818974,26.2755,159.35,159.3,7.0934822]
[1724738819289,21.8842,159.39,159.33,6.2758]
[1724738820575,21.8842,159.39,159.34,1.25505275]
[1724738820893,20.0,159.38,159.34,1.25505275]
[1724738821669,21.8842,159.39,159.34,7.53085275]
[1724738821863,9.65760457,159.42,159.35,1.25499996]
[1724738822069,12.5806,159.45,159.39,6.2739]
[1724738822307,15.6102,159.47,159.4,1.25458222]
[1724738822593,6.2708,159.47,159.42,6.2726]
[1724738822892,9.65760457,159.49,159.43,7.52659598]
[1724738823078,25.35820457,159.51,159.43,7.52659598]
[1724738823288,15.7006,159.51,159.44,6.2718]
[1724738823889,6.2696,159.5,159.44,6.2718]
[1724738824761,6.2692,159.51,159.42,31.8376]
[1724738824967,6.2692,159.51,159.43,54.65760457]
[1724738825802,6.2692,159.51,159.46,6.2711]
[1724738826215,20.0,159.5,159.46,6.2711]
[1724738830819,20.0,159.5,159.47,6.2706]
[1724738830980,20.0,159.52,159.48,1.25390521]
[1724738832089,74.29531828,159.6,159.49,7.52379358]
[1724738832284,9.65760457,159.57,159.49,7.52379358]
[1724738832620,20.0,159.56,159.49,7.52379358]
[1724738833326,11.22482313,159.55,159.49,6.2699]
[1724738833517,20.0,159.54,159.49,6.2699]
[1724738833695,26.2681,159.54,159.49,6.2699]
[1724738834094,26.2681,159.54,159.48,12.4369]
[1724738834987,26.2681,159.54,159.49,6.2698]
[1724738835219,26.2681,159.54,159.5,1.2537102]
[1724738836187,20.0,159.54,159.5,7.5232102]
[1724738836588,20.0,159.54,159.5,6.2695]
[1724738838724,26.268,159.54,159.49,16.1565]
[1724738838889,1.56718526,159.53,159.48,28.1124]
[1724738839521,29.65760457,159.54,159.48,28.1124]
[1724738839819,6.2684,159.53,159.48,28.1124]
[1724738842924,6.2688,159.52,159.48,15.6758]
[1724738843510,6.2684,159.53,159.48,21.9461]
[1724738844722,20.0,159.54,159.5,6.2695]
[1724738844928,6.2672,159.57,159.51,7.52270786]
[1724738845228,6.2672,159.56,159.52,1.25355715]
[1724738846327,6.2672,159.56,159.51,1.25354946]
[1724738848630,6.2672,159.56,159.5,15.92710457]
[1724738848923,6.2672,159.56,159.5,6.2695]
[1724738849354,7.83487872,159.55,159.5,6.2695]
[1724738849626,7.83487872,159.55,159.49,6.2699]
[1724738851127,6.2678,159.55,159.49,6.2699]
[1724738852317,7.83489942,159.55,159.49,6.2699]
[1724738854306,1.56710081,159.54,159.49,6.2699]
[1724738854517,15.92560457,159.54,159.49,6.2699]
[1724738866023,7.8357393,159.53,159.48,21.946]
[1724738866420,6.2688,159.52,159.48,15.6758]
[1724738866763,6.2688,159.52,159.48,21.9461]
[1724738871417,6.2688,159.52,159.46,6.2711]
[1724738871418,7.83664436,159.51,159.46,6.2711]
[1724738876130,6.2697,159.5,159.45,37.7699]
[1724738876334,15.92730457,159.5,159.45,21.95]
[1724738876625,1.56760499,159.49,159.45,21.95]
[1724738876830,7.83750499,159.49,159.45,15.6785]
[1724738877034,1.56772572,159.48,159.45,15.6785]
[1724738877250,7.83761771,159.49,159.45,15.6785]
[1724738881658,6.2699,159.49,159.45,15.6785]
[1724738882551,7.8375845,159.49,159.45,15.6785]
[1724738882749,7.83818495,159.48,159.43,6.2723]
[1724738883435,7.83818495,159.48,159.44,6.2719]
[1724738883829,6.2705,159.48,159.44,6.2719]
[1724738894476,6.27,159.49,159.45,1.25420372]
[1724738895775,6.27,159.49,159.44,6.2719]
[1724738908390,1.56767056,159.48,159.44,6.2719]
[1724738912191,31.22527513,159.48,159.42,15.6814]
[1724738912390,15.92880457,159.46,159.42,15.6814]
[1724738912571,1.56800647,159.45,159.42,15.6814]
[1724738913986,17.49681007,159.46,159.42,15.6814]
[1724738914566,1.56800627,159.45,159.42,15.6814]
[1724738915098,7.83920558,159.46,159.42,15.6814]
[1724738915795,1.56800658,159.45,159.42,15.6814]
[1724738915979,7.83970658,159.45,159.39,15.6845]
[1724738916569,6.2717,159.45,159.39,15.6845]
[1724738916764,7.83976412,159.45,159.39,15.6845]
[1724738917078,6.272,159.44,159.39,21.9582]
[1724738921207,1.56822218,159.43,159.39,21.9582]
[1724738930832,1.56822218,159.43,159.36,15.6876]
[1724738931044,6.2731,159.41,159.36,21.9626]
[1724738933121,20.0,159.48,159.37,1.25478838]
[1724738933122,6.56007814,159.44,159.37,1.25478838]
[1724738933321,12.83227814,159.44,159.39,6.2738]
[1724738933522,6.2722,159.44,159.4,1.25457332]
[1724738933720,6.2722,159.44,159.39,6.2738]
[1724738940029,1.56822119,159.43,159.39,6.2738]
[1724738940230,7.84052119,159.43,159.38,6.2742]
[1724738940432,1.56837236,159.42,159.38,6.2742]
[1724738942142,7.84065373,159.43,159.38,6.2742]
[1724738942513,1.56829721,159.42,159.38,6.2742]
[1724738944059,7.84119721,159.42,159.36,21.9623]
[1724738944930,6.2731,159.41,159.36,21.9623]
[1724738945132,1.56855266,159.4,159.36,21.9623]
[1724738947827,7.84169325,159.41,159.36,21.9623]
[1724738948819,6.2731,159.41,159.36,21.9623]
[1724738950921,7.84208535,159.4,159.36,21.9623]
[1724738951137,1.56861091,159.39,159.36,21.9623]
[1724738953524,1.56861091,159.39,159.36,15.6876]
[1724738957830,1.56861091,159.39,159.33,31.3805]
[1724738957831,7.84251091,159.39,159.34,6.2758]
[1724738958033,6.2739,159.39,159.34,6.2758]
[1724738958344,7.84262552,159.39,159.34,6.2758]
[1724738959235,6.2739,159.39,159.34,6.2758]
[1724738961859,6.2739,159.39,159.35,7.53036884]
[1724738962527,6.2739,159.39,159.35,6.2754]
[1724738968466,6.2739,159.39,159.34,6.2757]
[1724738971572,6.2743,159.38,159.33,21.9668]
[1724738971780,6.2747,159.37,159.33,15.6906]
[1724738971980,1.56887481,159.36,159.33,15.6906]
[1724738973167,7.84407481,159.36,159.31,6.277]
[1724738973472,7.84422149,159.36,159.31,6.277]
[1724738976674,6.2747,159.37,159.33,6.2762]
[1724738976871,7.84357182,159.37,159.33,6.2762]
[1724738978574,6.2747,159.37,159.33,6.2762]
[1724738981173,7.84357273,159.37,159.32,6.2766]
[1724738982278,6.2747,159.37,159.32,6.2766]
[1724738987986,7.84357424,159.37,159.32,6.2766]
[1724738990161,15.93270457,159.36,159.31,21.9686]
[1724738990367,1.56899493,159.35,159.31,21.9686]
[1724738990887,15.93270457,159.36,159.31,21.9686]
[1724738996196,6.2751,159.36,159.31,21.9686]
[1724739008304,1.56903079,159.35,159.31,21.9686]
[1724739009016,11.22663536,159.35,159.3,0.8160822]
[1724739009188,15.93390457,159.33,159.3,0.8160822]
[1724739009378,1.56932249,159.32,159.3,0.8160822]
[1724739013296,20.0,159.34,159.3,0.8160822]
[1724739013487,15.4219,159.37,159.3,27.42185138]
[1724739013686,15.4219,159.37,159.34,6.2758]
[1724739013991,15.4219,159.37,159.32,15.6908]
[1724739013992,15.4219,159.37,159.35,6.2754]
[1724739014184,15.8825,159.41,159.36,1.25489349]
[1724739014385,15.8825,159.41,159.38,6.2742]
[1724739014580,15.8825,159.41,159.39,7.52841952]
[1724739014832,403.454,159.45,159.39,6.2738]
[1724739014991,397.1825,159.45,159.4,6.2734]
[1724739016000,1.5680849,159.44,159.39,6.2738]
[1724739019911,7.8399849,159.44,159.39,6.2738]
[1724739020811,9.65760457,159.43,159.38,15.6848]
[1724739021001,1.56848534,159.42,159.38,15.6848]
[1724739021714,7.84128534,159.42,159.38,15.6848]
[1724739022214,6.2728,159.42,159.38,15.6848]
[1724739022712,7.84126823,159.42,159.38,15.6848]
[1724739023911,6.2731,159.41,159.36,6.275]
[1724739024716,6.2728,159.42,159.36,6.275]
[1724739026215,7.84127018,159.42,159.36,6.275]
[1724739034914,6.2731,159.41,159.36,6.275]
[1724739035306,7.84117018,159.42,159.37,6.2746]
[1724739036192,9.65760457,159.39,159.31,15.6924]
[1724739036404,9.65760457,159.37,159.32,6.2763]
[1724739038915,15.93230457,159.37,159.32,6.2763]
[1724739041004,6.2747,159.37,159.32,6.2763]
[1724739041207,6.2739,159.39,159.34,6.2758]
[1724739041718,6.2739,159.39,159.35,1.25493526]
[1724739042723,6.2739,159.39,159.34,6.2758]
[1724739042931,6.2739,159.39,159.35,1.25491808]
[1724739044125,6.2739,159.39,159.34,6.2758]
[1724739044317,22.4147,159.4,159.35,1.25490033]
[1724739044721,22.4147,159.4,159.36,1.2547812]
[1724739045943,22.4147,159.4,159.36,6.275]
[1724739046121,22.4147,159.4,159.37,1.25478276]
[1724739046507,22.4147,159.4,159.36,6.275]
[1724739046727,22.4147,159.4,159.33,15.6898]
[1724739047240,6.2739,159.39,159.34,6.2755]
[1724739047450,22.4147,159.4,159.35,7.53013492]
[1724739047620,22.4147,159.4,159.35,6.2753]
[1724739048239,32.07230457,159.4,159.35,6.2753]
[1724739048543,38.34590457,159.4,159.35,6.2753]
[1724739059658,38.34590457,159.4,159.34,6.2758]
[1724739059659,6.274,159.39,159.34,6.2758]
[1724739059844,9.65760457,159.38,159.33,15.6898]
[1724739060152,15.93230457,159.38,159.33,15.6898]
[1724739060345,15.93230457,159.38,159.33,21.9657]
[1724739062543,1.5687463,159.37,159.32,6.2766]
[1724739063039,9.65760457,159.36,159.32,6.2766]
[1724739063243,15.93270457,159.36,159.31,6.277]
[1724739065763,16.4064,159.35,159.31,6.277]
[1724739070077,17.9754043,159.35,159.31,6.277]
[1724739071568,24.2510043,159.35,159.3,16.5095822]
[1724739071737,39.00410457,159.35,159.3,22.7869822]
[1724739071943,16.4064,159.35,159.3,16.5095822]
[1724739072669,16.4064,159.35,159.32,6.2764]
[1724739076095,16.4064,159.35,159.31,6.277]
[1724739076287,17.97528043,159.35,159.31,6.277]
[1724739076784,24.25078043,159.35,159.31,6.277]
[1724739080981,6.6645,159.39,159.33,9.65760457]
[1724739081185,6.6645,159.39,159.35,6.2754]
[1724739081389,6.6645,159.39,159.36,1.25485637]
[1724739081904,15.4523,159.4,159.36,7.52975637]
[1724739083305,15.4523,159.4,159.36,6.2749]
[1724739084085,1.56855455,159.39,159.35,21.9639]
[1724739084293,17.50035912,159.39,159.35,15.6885]
[1724739085809,17.50035912,159.39,159.33,6.2759]
[1724739089520,17.50035912,159.39,159.34,6.2758]
[1724739094324,15.93180457,159.39,159.32,15.6914]
[1724739094634,6.2742,159.39,159.35,6.2754]
[1724739095395,21.7258,159.4,159.35,6.2754]
[1724739096600,21.7258,159.4,159.36,1.25489578]
[1724739096804,15.4523,159.4,159.37,6.2746]
[1724739099027,15.4523,159.4,159.36,7.52989398]
[1724739100130,12.83724448,159.41,159.36,16.94179398]
[1724739100131,6.56414448,159.41,159.36,16.94179398]
[1724739100898,6.1093,159.43,159.36,16.94179398]
[1724739101434,6.1093,159.43,159.36,15.6869]
[1724739101805,12.3817,159.43,159.38,6.2742]
[1724739102331,12.3817,159.43,159.39,1.25462684]
[1724739104137,16.5597,159.44,159.39,1.25462488]
[1724739104301,16.5597,159.44,159.39,10.91222945]
[1724739105521,6.2712,159.46,159.4,1.25450903]
[1724739106825,6.2712,159.46,159.41,6.273]
[1724739107016,6.2712,159.46,159.42,1.25442134]
[1724739108730,6.2712,159.46,159.41,7.52741991]
[1724739109417,6.2712,159.46,159.41,6.273]
[1724739111411,1.56804226,159.45,159.41,6.273]
[1724739112132,6.2712,159.46,159.41,6.273]
[1724739114218,1.56804355,159.45,159.41,6.273]
[1724739115441,6.2712,159.46,159.41,6.273]
[1724739116143,1.5680445,159.45,159.41,6.273]
[1724739119419,7.8396445,159.45,159.4,6.2734]
[1724739119619,15.93000457,159.43,159.38,21.9588]
[1724739119838,7.84123833,159.42,159.38,15.6849]
[1724739120337,1.56843833,159.42,159.38,21.9591]
[1724739121235,6.2724,159.43,159.38,21.9591]
[1724739121420,6.272,159.44,159.39,6.2738]
[1724739121621,6.2716,159.45,159.4,6.2734]
[1724739121920,6.2716,159.45,159.41,1.25450065]
[1724739122539,12.83636301,159.46,159.41,7.52750065]
[1724739123117,12.83636301,159.46,159.42,1.25441649]
[1724739123341,12.83636301,159.46,159.41,7.52742224]
[1724739124418,12.83636301,159.46,159.42,1.25441758]
[1724739124927,26.21730457,159.48,159.42,1.25441758]
[1724739124928,22.8304,159.48,159.42,1.25436379]
[1724739125121,6.27,159.49,159.43,1.25428135]
[1724739125322,20.0,159.48,159.44,6.2718]
[1724739125531,26.2704,159.48,159.43,7.52658135]
[1724739125737,6.2699,159.5,159.43,10.91188592]
[1724739125940,6.56296712,159.51,159.46,6.271]
[1724739126127,6.2688,159.52,159.47,7.52468505]
[1724739127144,6.2688,159.52,159.47,6.2707]
[1724739134657,15.92640457,159.52,159.47,6.2707]
[1724739135746,1.56749687,159.51,159.47,6.2707]
[1724739138959,15.92720457,159.5,159.44,38.3518]
[1724739139135,1.56763254,159.49,159.44,31.9992]
[1724739140738,1.56763254,159.49,159.46,6.2711]
[1724739141144,7.83773254,159.49,159.44,15.679]
[1724739141349,1.56781261,159.48,159.44,15.679]
[1724739142178,11.22541718,159.48,159.44,15.679]
[1724739142384,11.22541718,159.48,159.44,21.9508]
[1724739145583,15.7244,159.63,159.52,6.2686]
[1724739145743,25.38200457,159.63,159.52,9.65760457]
[1724739146056,45.38200457,159.63,159.55,15.669]
[1724739146954,6.2657,159.6,159.55,21.9365]
[1724739147156,20.0,159.59,159.55,15.669]
[1724739147474,35.92370457,159.59,159.55,15.669]
[1724739148483,9.65760457,159.57,159.51,15.6722]
[1724739148680,9.65760457,159.55,159.51,15.6722]
[1724739149809,9.65760457,159.55,159.51,21.9413]
[1724739150950,26.2676,159.56,159.51,21.9413]
[1724739151150,35.92520457,159.56,159.51,21.9413]
[1724739151355,29.65760457,159.56,159.52,6.2686]
[1724739152788,35.92480457,159.56,159.51,21.9413]
[1724739154691,38.63041828,159.6,159.51,21.9413]
[1724739154692,9.65760457,159.6,159.54,15.6698]
[1724739154981,15.7244,159.63,159.54,15.6698]
[1724739155352,9.65760457,159.62,159.54,15.6698]
[1724739155762,20.0,159.61,159.54,15.6698]
[1724739156194,20.0,159.61,159.56,6.2672]